[Event "Early-Titled-Tuesday-Blitz-January-30-2024"]
[Site "Chess.com"]
[Date "2024.01.30"]
[Round "6"]
[White "Xsu11"]
[Black "Klavdia_Nik"]
[Result "1-0"]
[WhiteElo "2341"]
[BlackElo "2139"]
[TimeControl "180+1"]
[EndTime "9:06:56 PST"]
[Termination "Xsu11 won by resignation"]

1. e4 {[%clk 0:02:43.4]} 1... e6 {[%clk 0:02:47.1]} 2. d3 {[%clk 0:02:37.8]}
2... d5 {[%clk 0:02:38.3]} 3. Nd2 {[%clk 0:02:37.1]} 3... c5 {[%clk 0:02:35.1]}
4. g3 {[%clk 0:02:36.6]} 4... Nc6 {[%clk 0:01:54]} 5. Bg2 {[%clk 0:02:35.8]}
5... g6 {[%clk 0:01:49.3]} 6. Ngf3 {[%clk 0:02:34.9]} 6... Bg7 {[%clk
0:01:45.6]} 7. O-O {[%clk 0:02:34.5]} 7... Nge7 {[%clk 0:01:36.2]} 8. c3 {[%clk
0:02:31.7]} 8... O-O {[%clk 0:01:34.7]} 9. Qe2 {[%clk 0:02:31.2]} 9... e5 {[%clk
0:01:29.1]} 10. Re1 {[%clk 0:02:24.7]} 10... h6 {[%clk 0:01:17.1]} 11. Nf1
{[%clk 0:02:18.1]} 11... Be6 {[%clk 0:01:13.1]} 12. Nh4 {[%clk 0:02:07.8]} 12...
Kh7 {[%clk 0:01:09.5]} 13. f4 {[%clk 0:02:01.6]} 13... exf4 {[%clk 0:00:55.4]}
14. gxf4 {[%clk 0:02:00.7]} 14... Qd7 {[%clk 0:00:53.5]} 15. Ng3 {[%clk
0:01:51.3]} 15... Bg4 {[%clk 0:00:47.4]} 16. Qf2 {[%clk 0:01:43.7]} 16... dxe4
{[%clk 0:00:29.2]} 17. dxe4 {[%clk 0:01:41.8]} 17... b6 {[%clk 0:00:28]} 18. f5
{[%clk 0:01:31]} 18... gxf5 {[%clk 0:00:19.1]} 19. exf5 {[%clk 0:01:29.2]} 19...
Bf6 {[%clk 0:00:12]} 20. Ne4 {[%clk 0:01:22.8]} 20... Bxh4 {[%clk 0:00:05.2]}
21. Qxh4 {[%clk 0:01:22.5]} 21... Bxf5 {[%clk 0:00:05.4]} 22. Nf6+ {[%clk
0:01:22]} 1-0

[Event "Early-Titled-Tuesday-Blitz-January-30-2024"]
[Site "Chess.com"]
[Date "2024.01.30"]
[Round "6"]
[White "ri4mi"]
[Black "stepanosinovsky"]
[Result "1-0"]
[WhiteElo "2545"]
[BlackElo "2382"]
[TimeControl "180+1"]
[EndTime "9:07:13 PST"]
[Termination "ri4mi won on time"]

1. e4 {[%clk 0:03:00.9]} 1... e5 {[%clk 0:02:58.6]} 2. Nf3 {[%clk 0:03:00.9]}
2... Nc6 {[%clk 0:02:59.5]} 3. Nc3 {[%clk 0:03:01.1]} 3... Nf6 {[%clk
0:02:59.2]} 4. h3 {[%clk 0:03:02]} 4... Bb4 {[%clk 0:02:44.2]} 5. Nd5 {[%clk
0:03:01]} 5... Bc5 {[%clk 0:02:39.5]} 6. Bc4 {[%clk 0:02:57.1]} 6... h6 {[%clk
0:02:26.9]} 7. d3 {[%clk 0:02:56.6]} 7... d6 {[%clk 0:02:25.5]} 8. O-O {[%clk
0:02:56.5]} 8... Na5 {[%clk 0:02:21.5]} 9. Be3 {[%clk 0:02:54.4]} 9... Nxc4
{[%clk 0:02:13]} 10. Bxc5 {[%clk 0:02:54.4]} 10... dxc5 {[%clk 0:02:06.6]} 11.
dxc4 {[%clk 0:02:54.1]} 11... O-O {[%clk 0:01:49.3]} 12. Re1 {[%clk 0:02:51.5]}
12... c6 {[%clk 0:01:46]} 13. Nc3 {[%clk 0:02:42.4]} 13... Qxd1 {[%clk
0:01:33.3]} 14. Raxd1 {[%clk 0:02:41.9]} 14... Nd7 {[%clk 0:01:33.5]} 15. Rd6
{[%clk 0:02:39.9]} 15... Re8 {[%clk 0:01:13.7]} 16. Red1 {[%clk 0:02:39.2]}
16... Nb6 {[%clk 0:01:13.9]} 17. b3 {[%clk 0:02:38.9]} 17... f6 {[%clk
0:01:10.2]} 18. g4 {[%clk 0:02:38.5]} 18... Be6 {[%clk 0:01:09.3]} 19. Nh4
{[%clk 0:02:34.6]} 19... Kf7 {[%clk 0:01:01.3]} 20. Ne2 {[%clk 0:02:29.9]} 20...
Rh8 {[%clk 0:00:33.4]} 21. Ng3 {[%clk 0:02:28.9]} 21... Rae8 {[%clk 0:00:29.3]}
22. a4 {[%clk 0:02:24.1]} 22... a5 {[%clk 0:00:29.2]} 23. Nhf5 {[%clk
0:02:20.5]} 23... g6 {[%clk 0:00:28.2]} 24. Ne3 {[%clk 0:02:20.6]} 24... Re7
{[%clk 0:00:26.7]} 25. Rd8 {[%clk 0:02:13.8]} 25... Ree8 {[%clk 0:00:24.9]} 26.
Rxe8 {[%clk 0:02:09.6]} 26... Kxe8 {[%clk 0:00:23.8]} 27. h4 {[%clk 0:02:08.4]}
27... Nc8 {[%clk 0:00:16.3]} 28. h5 {[%clk 0:02:08.1]} 28... g5 {[%clk
0:00:12.4]} 29. Nef5 {[%clk 0:02:07.1]} 29... Rh7 {[%clk 0:00:10.4]} 30. f3
{[%clk 0:02:01.8]} 30... Rh8 {[%clk 0:00:08]} 31. Kf2 {[%clk 0:02:01.5]} 31...
Rh7 {[%clk 0:00:08.6]} 32. Ke3 {[%clk 0:02:01.4]} 32... Rh8 {[%clk 0:00:08.9]}
33. Ng7+ {[%clk 0:01:43.4]} 33... Kf7 {[%clk 0:00:07.1]} 34. N3f5 {[%clk
0:01:39]} 1-0

[Event "Early-Titled-Tuesday-Blitz-January-30-2024"]
[Site "Chess.com"]
[Date "2024.01.30"]
[Round "6"]
[White "rikchessmx"]
[Black "AustinThomas12345"]
[Result "0-1"]
[WhiteElo "2327"]
[BlackElo "2507"]
[TimeControl "180+1"]
[EndTime "9:07:19 PST"]
[Termination "AustinThomas12345 won on time"]

1. e4 {[%clk 0:02:55.7]} 1... c5 {[%clk 0:03:00]} 2. Nf3 {[%clk 0:02:55.2]} 2...
g6 {[%clk 0:02:59.7]} 3. d4 {[%clk 0:02:56.1]} 3... cxd4 {[%clk 0:03:00.6]} 4.
Qxd4 {[%clk 0:02:53.2]} 4... Nf6 {[%clk 0:03:00.7]} 5. e5 {[%clk 0:02:53.5]}
5... Nc6 {[%clk 0:03:01.2]} 6. Qc4 {[%clk 0:02:54.1]} 6... d5 {[%clk 0:02:49]}
7. exd6 {[%clk 0:02:52]} 7... Qxd6 {[%clk 0:02:44.7]} 8. Nc3 {[%clk 0:02:50.6]}
8... Bg7 {[%clk 0:02:44.3]} 9. Bf4 {[%clk 0:01:01.7]} 9... Qb4 {[%clk
0:02:37.7]} 10. O-O-O {[%clk 0:00:56.7]} 10... Qxc4 {[%clk 0:02:34.5]} 11. Bxc4
{[%clk 0:00:55.6]} 11... O-O {[%clk 0:02:33.9]} 12. Nb5 {[%clk 0:00:52.5]} 12...
Bg4 {[%clk 0:02:32.9]} 13. h3 {[%clk 0:00:50]} 13... Bxf3 {[%clk 0:02:32.8]} 14.
gxf3 {[%clk 0:00:50.9]} 14... e5 {[%clk 0:02:29.2]} 15. Be3 {[%clk 0:00:48]}
15... a6 {[%clk 0:02:26.2]} 16. Nd6 {[%clk 0:00:45.3]} 16... b5 {[%clk
0:02:20.9]} 17. Bb3 {[%clk 0:00:45.3]} 17... Na5 {[%clk 0:02:11.8]} 18. Bxf7+
{[%clk 0:00:27.8]} 18... Rxf7 {[%clk 0:02:09.8]} 19. Nxf7 {[%clk 0:00:27.7]}
19... Kxf7 {[%clk 0:02:10.7]} 20. f4 {[%clk 0:00:25.6]} 20... e4 {[%clk
0:02:02.3]} 21. b3 {[%clk 0:00:23.4]} 21... Nc6 {[%clk 0:01:58.5]} 22. Rd6
{[%clk 0:00:20.5]} 22... Ne7 {[%clk 0:01:56.5]} 23. Bd4 {[%clk 0:00:18.3]} 23...
Nf5 {[%clk 0:01:53.1]} 24. Bxf6 {[%clk 0:00:08.7]} 24... Nxd6 {[%clk 0:01:52.9]}
25. Bxg7 {[%clk 0:00:09]} 25... Kxg7 {[%clk 0:01:53.8]} 26. Rd1 {[%clk
0:00:08.6]} 26... Rd8 {[%clk 0:01:53.9]} 27. Rd5 {[%clk 0:00:08.6]} 27... Nf7
{[%clk 0:01:53.9]} 28. Rc5 {[%clk 0:00:07.5]} 28... Kf6 {[%clk 0:01:53.5]} 29.
Rc6+ {[%clk 0:00:07.8]} 29... Rd6 {[%clk 0:01:54.2]} 30. Rc7 {[%clk 0:00:08]}
30... Re6 {[%clk 0:01:51.9]} 31. Kd2 {[%clk 0:00:07.3]} 31... h5 {[%clk
0:01:51.6]} 32. c4 {[%clk 0:00:05.7]} 32... bxc4 {[%clk 0:01:50.8]} 33. bxc4
{[%clk 0:00:05.7]} 33... Nd8 {[%clk 0:01:50.8]} 34. Ke3 {[%clk 0:00:03.8]} 34...
Rc6 {[%clk 0:01:51.2]} 35. Rxc6+ {[%clk 0:00:03.3]} 35... Nxc6 {[%clk
0:01:52.1]} 36. Kxe4 {[%clk 0:00:03.8]} 36... Ke6 {[%clk 0:01:52.7]} 37. a4
{[%clk 0:00:02.2]} 37... a5 {[%clk 0:01:50.7]} 38. h4 {[%clk 0:00:01.4]} 38...
Ne7 {[%clk 0:01:48]} 39. Kd4 {[%clk 0:00:01.6]} 39... Nf5+ {[%clk 0:01:42]} 40.
Kc5 {[%clk 0:00:01.4]} 40... Nxh4 {[%clk 0:01:42.4]} 41. Kb6 {[%clk 0:00:02]}
41... Nf5 {[%clk 0:01:41.6]} 0-1

[Event "Early-Titled-Tuesday-Blitz-January-30-2024"]
[Site "Chess.com"]
[Date "2024.01.30"]
[Round "6"]
[White "Mops_2004"]
[Black "GatoRojo150"]
[Result "1-0"]
[WhiteElo "2759"]
[BlackElo "2585"]
[TimeControl "180+1"]
[EndTime "9:07:25 PST"]
[Termination "Mops_2004 won by resignation"]

1. f4 {[%clk 0:03:00.9]} 1... Nf6 {[%clk 0:02:59.3]} 2. Nf3 {[%clk 0:03:00.5]}
2... d6 {[%clk 0:02:58.3]} 3. g3 {[%clk 0:02:57.5]} 3... e5 {[%clk 0:02:58.2]}
4. fxe5 {[%clk 0:02:57.1]} 4... dxe5 {[%clk 0:02:59.1]} 5. Nxe5 {[%clk
0:02:57.8]} 5... Bd6 {[%clk 0:02:56.9]} 6. Nf3 {[%clk 0:02:43]} 6... h5 {[%clk
0:02:56.5]} 7. d4 {[%clk 0:02:29]} 7... h4 {[%clk 0:02:55.1]} 8. Nxh4 {[%clk
0:02:29.1]} 8... Rxh4 {[%clk 0:02:54.5]} 9. gxh4 {[%clk 0:02:29.5]} 9... Ne4
{[%clk 0:02:45.5]} 10. Bg5 {[%clk 0:02:20.5]} 10... Nxg5 {[%clk 0:02:43.6]} 11.
hxg5 {[%clk 0:02:20.7]} 11... Qxg5 {[%clk 0:02:44.5]} 12. Qd3 {[%clk 0:02:04.5]}
12... Bf5 {[%clk 0:01:42]} 13. Qf3 {[%clk 0:01:40]} 13... Nc6 {[%clk 0:01:31.8]}
14. e3 {[%clk 0:01:36.5]} 14... O-O-O {[%clk 0:01:19.3]} 15. h4 {[%clk
0:01:25.1]} 15... Bg3+ {[%clk 0:01:10.7]} 16. Kd1 {[%clk 0:01:13.8]} 16... Bg4
{[%clk 0:01:01.9]} 17. Bh3 {[%clk 0:01:13.6]} 17... Nxd4 {[%clk 0:00:47.1]} 18.
Bxg4+ {[%clk 0:00:52.1]} 18... Kb8 {[%clk 0:00:35.4]} 19. hxg5 {[%clk
0:00:47.6]} 19... Nxf3+ {[%clk 0:00:35.5]} 20. Ke2 {[%clk 0:00:47.9]} 20... Ne5
{[%clk 0:00:35.8]} 21. Bf5 {[%clk 0:00:44.1]} 21... g6 {[%clk 0:00:35.4]} 22.
Bd3 {[%clk 0:00:44.3]} 22... Re8 {[%clk 0:00:31.3]} 23. Rh3 {[%clk 0:00:40.4]}
23... Nxd3 {[%clk 0:00:27.3]} 24. cxd3 {[%clk 0:00:40.6]} 24... Be5 {[%clk
0:00:28.2]} 25. Nc3 {[%clk 0:00:40.5]} 25... Bxc3 {[%clk 0:00:28]} 26. bxc3
{[%clk 0:00:40.4]} 26... b6 {[%clk 0:00:28.5]} 27. Rf1 {[%clk 0:00:39.8]} 27...
Rh8 {[%clk 0:00:28.2]} 28. Rxh8+ {[%clk 0:00:39.4]} 1-0

[Event "Early-Titled-Tuesday-Blitz-January-30-2024"]
[Site "Chess.com"]
[Date "2024.01.30"]
[Round "6"]
[White "bazar-wokzal"]
[Black "Jojo_898"]
[Result "1-0"]
[WhiteElo "2598"]
[BlackElo "2446"]
[TimeControl "180+1"]
[EndTime "9:07:25 PST"]
[Termination "bazar-wokzal won by resignation"]

1. e4 {[%clk 0:03:00.9]} 1... d6 {[%clk 0:02:59.3]} 2. f4 {[%clk 0:02:58.8]}
2... Nf6 {[%clk 0:02:57.1]} 3. Nc3 {[%clk 0:02:57.9]} 3... c6 {[%clk 0:02:56.8]}
4. Nf3 {[%clk 0:02:57.7]} 4... b5 {[%clk 0:02:55.1]} 5. e5 {[%clk 0:02:53.6]}
5... dxe5 {[%clk 0:02:53.3]} 6. fxe5 {[%clk 0:02:53.4]} 6... Nd5 {[%clk
0:02:53.2]} 7. d4 {[%clk 0:02:53.4]} 7... g6 {[%clk 0:02:49]} 8. Bg5 {[%clk
0:02:37.1]} 8... f6 {[%clk 0:02:40.9]} 9. Nxd5 {[%clk 0:02:25.3]} 9... Qxd5
{[%clk 0:02:39.4]} 10. exf6 {[%clk 0:02:24.9]} 10... exf6 {[%clk 0:02:28.7]} 11.
Bxf6 {[%clk 0:02:23.9]} 11... Qe6+ {[%clk 0:02:28.3]} 12. Qe2 {[%clk 0:02:23.9]}
12... Bb4+ {[%clk 0:02:17.3]} 13. c3 {[%clk 0:02:23]} 13... Rf8 {[%clk
0:02:15.5]} 14. Be5 {[%clk 0:02:00.1]} 14... Be7 {[%clk 0:01:52.8]} 15. Rd1
{[%clk 0:01:37.6]} 15... Nd7 {[%clk 0:01:48.5]} 16. Bg7 {[%clk 0:01:23]} 16...
Qxe2+ {[%clk 0:01:45.8]} 17. Bxe2 {[%clk 0:01:23.9]} 17... Rf7 {[%clk
0:01:43.9]} 18. Bh6 {[%clk 0:01:24.1]} 18... Nf6 {[%clk 0:01:40.2]} 19. O-O
{[%clk 0:01:22.7]} 19... Be6 {[%clk 0:01:40.2]} 20. Ng5 {[%clk 0:01:19.8]} 20...
Bxa2 {[%clk 0:01:39.4]} 21. Nxf7 {[%clk 0:01:18.6]} 21... Bxf7 {[%clk
0:01:40.3]} 22. Bf3 {[%clk 0:01:17.1]} 22... Bd5 {[%clk 0:01:36.3]} 23. Bg5
{[%clk 0:01:12.3]} 23... Bxf3 {[%clk 0:01:28.9]} 24. Rxf3 {[%clk 0:01:11.4]}
24... Nd5 {[%clk 0:01:22.3]} 25. Bxe7 {[%clk 0:01:10.1]} 25... Nxe7 {[%clk
0:01:09.4]} 26. Re1 {[%clk 0:01:10.1]} 26... Rd8 {[%clk 0:01:08.1]} 27. g4
{[%clk 0:01:04.9]} 27... Rd7 {[%clk 0:01:07.3]} 28. Kg2 {[%clk 0:01:04.2]} 28...
a5 {[%clk 0:00:59.6]} 29. Kg3 {[%clk 0:01:04.4]} 29... b4 {[%clk 0:00:59.5]} 30.
Ra1 {[%clk 0:00:56.1]} 30... Rd5 {[%clk 0:00:58.4]} 31. cxb4 {[%clk 0:00:49.2]}
31... axb4 {[%clk 0:00:58.1]} 32. Ra8+ {[%clk 0:00:48.9]} 32... Kd7 {[%clk
0:00:50.9]} 33. Ra7+ {[%clk 0:00:49.1]} 33... Ke6 {[%clk 0:00:47]} 34. Re3+
{[%clk 0:00:48.7]} 1-0

[Event "Early-Titled-Tuesday-Blitz-January-30-2024"]
[Site "Chess.com"]
[Date "2024.01.30"]
[Round "6"]
[White "h4parah5"]
[Black "gshwbedhkhd"]
[Result "1-0"]
[WhiteElo "2902"]
[BlackElo "2613"]
[TimeControl "180+1"]
[EndTime "9:07:26 PST"]
[Termination "h4parah5 won by resignation"]

1. d4 {[%clk 0:03:00.9]} 1... f5 {[%clk 0:02:59.7]} 2. Nf3 {[%clk 0:02:59.7]}
2... Nf6 {[%clk 0:02:59.2]} 3. c4 {[%clk 0:03:00.6]} 3... g6 {[%clk 0:02:59.2]}
4. e3 {[%clk 0:03:01]} 4... Bg7 {[%clk 0:02:59.5]} 5. b4 {[%clk 0:03:01.4]} 5...
O-O {[%clk 0:02:57.4]} 6. Be2 {[%clk 0:03:01.4]} 6... d6 {[%clk 0:02:56.3]} 7.
O-O {[%clk 0:03:01]} 7... e5 {[%clk 0:02:50.7]} 8. Bb2 {[%clk 0:02:59.7]} 8...
e4 {[%clk 0:02:49.3]} 9. Nfd2 {[%clk 0:02:59.3]} 9... c6 {[%clk 0:02:48.1]} 10.
a4 {[%clk 0:02:57.1]} 10... d5 {[%clk 0:02:47]} 11. b5 {[%clk 0:02:56.7]} 11...
Be6 {[%clk 0:02:45.1]} 12. Nc3 {[%clk 0:02:54.8]} 12... g5 {[%clk 0:02:44.2]}
13. a5 {[%clk 0:02:43]} 13... f4 {[%clk 0:02:32.9]} 14. a6 {[%clk 0:02:42]}
14... bxa6 {[%clk 0:02:25.5]} 15. bxc6 {[%clk 0:02:40.7]} 15... Nxc6 {[%clk
0:02:21]} 16. Rxa6 {[%clk 0:02:38]} 16... Qd7 {[%clk 0:02:02.3]} 17. Qa4 {[%clk
0:02:03.7]} 17... Rfb8 {[%clk 0:01:28.4]} 18. Ba3 {[%clk 0:01:56.8]} 18... Nd8
{[%clk 0:01:01.9]} 19. Qxd7 {[%clk 0:01:47.9]} 19... Bxd7 {[%clk 0:01:02.8]} 20.
cxd5 {[%clk 0:01:46.7]} 20... Bc8 {[%clk 0:00:57.9]} 21. Ra4 {[%clk 0:01:38.9]}
21... Bd7 {[%clk 0:00:53.5]} 22. Rc4 {[%clk 0:01:36.5]} 22... Bf5 {[%clk
0:00:36.8]} 23. Rc7 {[%clk 0:01:21.4]} 23... Nf7 {[%clk 0:00:31.7]} 24. d6
{[%clk 0:01:15]} 24... Rc8 {[%clk 0:00:29.9]} 25. Ba6 {[%clk 0:01:12.3]} 25...
Rd8 {[%clk 0:00:26]} 26. Nc4 {[%clk 0:01:11.1]} 26... Ne8 {[%clk 0:00:20.6]} 27.
Nd5 {[%clk 0:01:03.1]} 27... Nxc7 {[%clk 0:00:18.9]} 28. Ne7+ {[%clk 0:01:02.5]}
28... Kh8 {[%clk 0:00:18.2]} 29. dxc7 {[%clk 0:01:03.4]} 29... Rd7 {[%clk
0:00:14]} 30. c8=Q+ {[%clk 0:01:01]} 30... Rxc8 {[%clk 0:00:12.9]} 31. Bxc8
{[%clk 0:01:01.9]} 31... Rxe7 {[%clk 0:00:11.8]} 32. Bxf5 {[%clk 0:01:01.6]}
32... Rc7 {[%clk 0:00:11.7]} 1-0

[Event "Early-Titled-Tuesday-Blitz-January-30-2024"]
[Site "Chess.com"]
[Date "2024.01.30"]
[Round "6"]
[White "SantoBlue"]
[Black "Pliukha_Mikhail"]
[Result "1-0"]
[WhiteElo "2957"]
[BlackElo "2766"]
[TimeControl "180+1"]
[EndTime "9:07:32 PST"]
[Termination "SantoBlue won on time"]

1. e4 {[%clk 0:03:00.9]} 1... d5 {[%clk 0:03:00.2]} 2. exd5 {[%clk 0:03:00.7]}
2... Qxd5 {[%clk 0:03:01.1]} 3. Nc3 {[%clk 0:02:55.6]} 3... Qe5+ {[%clk
0:03:01.3]} 4. Be2 {[%clk 0:02:55]} 4... Bg4 {[%clk 0:03:01.2]} 5. d4 {[%clk
0:02:55.6]} 5... Bxe2 {[%clk 0:03:02.1]} 6. Ngxe2 {[%clk 0:02:55.5]} 6... Qa5
{[%clk 0:03:02.4]} 7. O-O {[%clk 0:02:55]} 7... Nf6 {[%clk 0:03:01.9]} 8. Qd3
{[%clk 0:02:48.5]} 8... Nc6 {[%clk 0:03:01.9]} 9. Qc4 {[%clk 0:02:15]} 9... e6
{[%clk 0:02:59.7]} 10. Be3 {[%clk 0:02:03.2]} 10... O-O-O {[%clk 0:02:59.3]} 11.
a3 {[%clk 0:02:01.9]} 11... Qf5 {[%clk 0:02:53.7]} 12. b4 {[%clk 0:01:58.6]}
12... Bd6 {[%clk 0:02:47.6]} 13. Ng3 {[%clk 0:01:52.5]} 13... Qg6 {[%clk
0:02:45.4]} 14. Nb5 {[%clk 0:01:51.1]} 14... h5 {[%clk 0:02:40.6]} 15. Nxd6+
{[%clk 0:01:50.9]} 15... Rxd6 {[%clk 0:02:41.5]} 16. b5 {[%clk 0:01:50.4]} 16...
Na5 {[%clk 0:02:40.8]} 17. Qb4 {[%clk 0:01:48.6]} 17... b6 {[%clk 0:02:24.5]}
18. h3 {[%clk 0:01:48]} 18... Nd5 {[%clk 0:02:21.5]} 19. Qe1 {[%clk 0:01:47.8]}
19... h4 {[%clk 0:02:20.1]} 20. Ne2 {[%clk 0:01:47.5]} 20... Qxc2 {[%clk
0:02:14.7]} 21. Rc1 {[%clk 0:01:46.2]} 21... Qf5 {[%clk 0:02:09.3]} 22. Nc3
{[%clk 0:01:33.3]} 22... Nxe3 {[%clk 0:01:50.9]} 23. fxe3 {[%clk 0:01:32.7]}
23... Qg6 {[%clk 0:01:47.4]} 24. Qe2 {[%clk 0:01:32.4]} 24... f6 {[%clk
0:01:41]} 25. Na2 {[%clk 0:01:30.3]} 25... Rh5 {[%clk 0:01:33.5]} 26. Nb4 {[%clk
0:01:27.5]} 26... Rg5 {[%clk 0:01:25]} 27. Qf3 {[%clk 0:01:26.1]} 27... Rgd5
{[%clk 0:00:23.9]} 28. Nxd5 {[%clk 0:01:24.1]} 28... exd5 {[%clk 0:00:24.8]} 29.
Qf4 {[%clk 0:01:22]} 29... Nc4 {[%clk 0:00:22.9]} 30. e4 {[%clk 0:01:21]} 30...
Kb7 {[%clk 0:00:14.1]} 31. exd5 {[%clk 0:01:20.3]} 31... Qd3 {[%clk 0:00:12.3]}
32. Rf3 {[%clk 0:01:14.5]} 32... Qe2 {[%clk 0:00:04.8]} 33. Rfc3 {[%clk
0:01:15.1]} 33... g5 {[%clk 0:00:02.2]} 34. Qf2 {[%clk 0:01:15.7]} 34... Qxf2+
{[%clk 0:00:02.5]} 35. Kxf2 {[%clk 0:01:16.6]} 35... Nxa3 {[%clk 0:00:01.8]} 36.
Rxc7+ {[%clk 0:01:16.9]} 36... Kb8 {[%clk 0:00:01.5]} 37. Rc8+ {[%clk
0:01:17.8]} 1-0

[Event "Early-Titled-Tuesday-Blitz-January-30-2024"]
[Site "Chess.com"]
[Date "2024.01.30"]
[Round "6"]
[White "FREDERICKtheMATE"]
[Black "Paladin61"]
[Result "1-0"]
[WhiteElo "2584"]
[BlackElo "2724"]
[TimeControl "180+1"]
[EndTime "9:07:32 PST"]
[Termination "FREDERICKtheMATE won by resignation"]

1. d4 {[%clk 0:03:00.9]} 1... d5 {[%clk 0:02:55.1]} 2. c4 {[%clk 0:03:01.2]}
2... e6 {[%clk 0:02:55.3]} 3. Nf3 {[%clk 0:02:59.7]} 3... Nf6 {[%clk 0:02:55]}
4. Nc3 {[%clk 0:02:59.5]} 4... h6 {[%clk 0:02:52]} 5. g3 {[%clk 0:02:58.2]} 5...
Nc6 {[%clk 0:02:51]} 6. Bg2 {[%clk 0:02:57.9]} 6... Bd6 {[%clk 0:02:50.4]} 7.
O-O {[%clk 0:02:57.7]} 7... O-O {[%clk 0:02:50.2]} 8. a3 {[%clk 0:02:57.9]} 8...
dxc4 {[%clk 0:02:44.5]} 9. Qa4 {[%clk 0:02:53.7]} 9... e5 {[%clk 0:02:39]} 10.
d5 {[%clk 0:02:50.3]} 10... Ne7 {[%clk 0:02:36.1]} 11. Qxc4 {[%clk 0:02:49.9]}
11... a6 {[%clk 0:02:35.2]} 12. a4 {[%clk 0:02:46.9]} 12... Bd7 {[%clk
0:02:29.5]} 13. Rd1 {[%clk 0:02:45.7]} 13... Rb8 {[%clk 0:02:18.3]} 14. a5
{[%clk 0:02:42.8]} 14... Re8 {[%clk 0:02:07.3]} 15. e4 {[%clk 0:02:42.1]} 15...
Ng6 {[%clk 0:02:01.6]} 16. Be3 {[%clk 0:02:41.4]} 16... Ng4 {[%clk 0:02:00.5]}
17. Bc5 {[%clk 0:02:40.1]} 17... Qe7 {[%clk 0:01:51]} 18. Bxd6 {[%clk
0:02:38.5]} 18... cxd6 {[%clk 0:01:49.2]} 19. Rac1 {[%clk 0:02:33.8]} 19... h5
{[%clk 0:01:39.4]} 20. Ne2 {[%clk 0:02:14.7]} 20... h4 {[%clk 0:01:30.7]} 21.
Qb4 {[%clk 0:02:11.5]} 21... Bb5 {[%clk 0:01:13.5]} 22. Nc3 {[%clk 0:02:09.3]}
22... Bd7 {[%clk 0:01:12.6]} 23. Nb1 {[%clk 0:02:01.2]} 23... f5 {[%clk
0:00:54.8]} 24. Rc7 {[%clk 0:01:54.9]} 24... Qd8 {[%clk 0:00:45.3]} 25. Rdc1
{[%clk 0:01:53]} 25... f4 {[%clk 0:00:37.5]} 26. Qxd6 {[%clk 0:01:49.8]} 26...
Nf6 {[%clk 0:00:30.6]} 27. Na3 {[%clk 0:01:37.4]} 27... h3 {[%clk 0:00:25.2]}
28. Bf1 {[%clk 0:01:21.9]} 28... Bg4 {[%clk 0:00:23.4]} 29. Qxd8 {[%clk
0:01:20.4]} 29... Rexd8 {[%clk 0:00:24.3]} 30. Nd2 {[%clk 0:01:19.8]} 30... Ne8
{[%clk 0:00:19.2]} 31. R7c3 {[%clk 0:01:16.1]} 31... Nd6 {[%clk 0:00:17.8]} 32.
f3 {[%clk 0:01:15.7]} 32... Bd7 {[%clk 0:00:13.6]} 33. g4 {[%clk 0:01:15.3]}
33... Nh4 {[%clk 0:00:10.9]} 34. Kf2 {[%clk 0:01:14.6]} 1-0

[Event "Early-Titled-Tuesday-Blitz-January-30-2024"]
[Site "Chess.com"]
[Date "2024.01.30"]
[Round "6"]
[White "FormerProdigy"]
[Black "mitrabhaa"]
[Result "1-0"]
[WhiteElo "3035"]
[BlackElo "2922"]
[TimeControl "180+1"]
[EndTime "9:07:34 PST"]
[Termination "FormerProdigy won by resignation"]

1. d4 {[%clk 0:03:00.9]} 1... Nf6 {[%clk 0:03:00]} 2. c4 {[%clk 0:03:01.4]} 2...
e6 {[%clk 0:03:00.3]} 3. Nc3 {[%clk 0:03:01.9]} 3... Bb4 {[%clk 0:03:00.8]} 4.
e3 {[%clk 0:03:02.1]} 4... b6 {[%clk 0:02:59.5]} 5. Ne2 {[%clk 0:02:55.2]} 5...
Ba6 {[%clk 0:02:53.7]} 6. a3 {[%clk 0:02:52.6]} 6... Be7 {[%clk 0:02:53.8]} 7.
Nf4 {[%clk 0:02:47.7]} 7... O-O {[%clk 0:02:53.4]} 8. b4 {[%clk 0:02:40.7]} 8...
Bb7 {[%clk 0:02:52.2]} 9. Bd3 {[%clk 0:02:38.2]} 9... d6 {[%clk 0:02:49.1]} 10.
O-O {[%clk 0:02:25.2]} 10... e5 {[%clk 0:02:48.1]} 11. Nfd5 {[%clk 0:02:21.4]}
11... Nxd5 {[%clk 0:02:40.5]} 12. Nxd5 {[%clk 0:02:22.3]} 12... c6 {[%clk
0:02:15.5]} 13. Nxe7+ {[%clk 0:02:21.5]} 13... Qxe7 {[%clk 0:02:16.4]} 14. Qc2
{[%clk 0:02:12.7]} 14... h6 {[%clk 0:02:14.5]} 15. a4 {[%clk 0:01:50.9]} 15...
c5 {[%clk 0:02:06]} 16. bxc5 {[%clk 0:01:43.9]} 16... bxc5 {[%clk 0:02:05.9]}
17. d5 {[%clk 0:01:42.7]} 17... a5 {[%clk 0:02:02.5]} 18. Bd2 {[%clk 0:01:41.2]}
18... Qc7 {[%clk 0:02:01.9]} 19. f4 {[%clk 0:01:35.3]} 19... Na6 {[%clk
0:01:49.8]} 20. fxe5 {[%clk 0:01:33.1]} 20... dxe5 {[%clk 0:01:50.7]} 21. Bh7+
{[%clk 0:01:09.4]} 21... Kh8 {[%clk 0:01:50.5]} 22. Bf5 {[%clk 0:01:10.3]} 22...
Nb4 {[%clk 0:01:50.1]} 23. Qe4 {[%clk 0:01:08.4]} 23... Qd6 {[%clk 0:01:46.3]}
24. Bc3 {[%clk 0:01:06.8]} 24... Rae8 {[%clk 0:01:45.3]} 25. Rf3 {[%clk
0:00:58]} 25... g6 {[%clk 0:01:13.1]} 26. Raf1 {[%clk 0:00:43.8]} 26... gxf5
{[%clk 0:00:49.3]} 27. Rxf5 {[%clk 0:00:44.7]} 27... Qg6 {[%clk 0:00:49.6]} 28.
Rxe5 {[%clk 0:00:38.2]} 28... Qxe4 {[%clk 0:00:28.3]} 29. Rxe8+ {[%clk
0:00:37.9]} 29... f6 {[%clk 0:00:29.2]} 30. Rxe4 {[%clk 0:00:38.1]} 1-0